{"text_format":"3","workbook":"xlsx","n_sheets":2,"sheets":["Inizio","Budget di matrimonio"],"read":"whole","date_system":"1900"}

{"sheet":"Inizio","index":0,"n_rows":7,"n_cols":2,"rows_kept":7}
[null,"INFORMAZIONI SU QUESTO MODELLO"]
[null,"Usare questo modello per registrare le spese matrimoniali effettive dei vari elementi e tenere traccia di queste in modo da confrontarle con gli importi preventivati."]
[null,"Immettere nelle tabelle corrispondenti le spese per abbigliamento, decorazioni, fiori, musica, fotografia, ricevimento nuziale, elementi decorativi, trasporti e altri elementi."]
[null,"Il totale delle spese effettive stimate e totali viene calcolato automaticamente."]
[null,"Nota: "]
[null,"Nella colonna A del foglio di lavoro BUDGET MATRIMONIATO sono disponibili altre istruzioni. Questo testo è stato nascosto intenzionalmente. Per rimuovere il testo, seleziona la colonna A, quindi scegli ELIMINA. Per visualizzare il testo, selezionare la colonna A, quindi modificare il colore del carattere."]
[null,"Per altre informazioni sulle tabelle, premere MAIUSC, quindi F10 in una tabella, selezionare l'opzione TABELLA, quindi selezionare TESTO ALTERNATIVO."]

{"sheet":"Budget di matrimonio","index":1,"n_rows":93,"n_cols":4,"rows_kept":93,"merged":[[0,1,0,3],[2,1,2,3],[6,1,6,3],[15,1,15,3],[25,1,25,3],[34,1,34,3],[43,1,43,3],[50,1,50,3],[59,1,59,3],[68,1,68,3],[77,1,77,3],[85,1,85,3]]}
[null,"BUDGET DI MATRIMONIO"]
[]
[null,"TOTALE SPESE "]
[null,"Elemento ","Stimate","Effettivo"]
[null,"Totale spese ",{"$f":"SUM(Abbigliamento[[#Totals],[Stimate]],Decorazioni[[#Totals],[Stimate]],Regali[[#Totals],[Stimate]],Fiori[[#Totals],[Stimate]],Musica[[#Totals],[Stimate]],Fotografie[[#Totals],[Stimate]],Ricevimento_nuziale[[#Totals],[Stimate]],ElementiDecorativiEStampa[[#Totals],[Stimate]],Trasporti[[#Totals],[Stimate]],AltreSpese[[#Totals],[Stimate]])","v":0},{"$f":"SUM(Abbigliamento[[#Totals],[Effettive]],Decorazioni[[#Totals],[Effettive]],Regali[[#Totals],[Effettive]],Fiori[[#Totals],[Effettive]],Musica[[#Totals],[Effettive]],Fotografie[[#Totals],[Effettive]],Ricevimento_nuziale[[#Totals],[Effettive]],ElementiDecorativiEStampa[[#Totals],[Effettive]],Trasporti[[#Totals],[Effettive]],AltreSpese[[#Totals],[Effettive]],)","v":0}]
[]
[null,"ABBIGLIAMENTO"]
[null,"Elemento ","Stimate","Effettive"]
[null,"Anello di fidanzamento"]
[null,"Fedi nuziali"]
[null,"Abito da sposa"]
[null,"Velo/tiara"]
[null,"Altro:"]
[null,"Totale abbigliamento",{"$f":"SUBTOTAL(109,Abbigliamento[Stimate])","v":0},{"$f":"SUBTOTAL(109,Abbigliamento[Effettive])","v":0}]
[]
[null,"DECORAZIONI"]
[null,"Elemento ","Stimate","Effettive"]
[null,"Ornamenti per la chiesa/altri posti a sedere"]
[null,"Centrotavola (fiori esclusi)"]
[null,"Candeline"]
[null,"Illuminazione"]
[null,"Palloncini"]
[null,"Altro:"]
[null,"Totale decorazioni",{"$f":"SUBTOTAL(109,Decorazioni[Stimate])","v":0},{"$f":"SUBTOTAL(109,Decorazioni[Effettive])","v":0}]
[]
[null,"REGALI"]
[null,"Elemento ","Stimate","Effettive"]
[null,"Partecipanti"]
[null,"Sposi"]
[null,"Genitori"]
[null,"Lettori/altri partecipanti"]
[null,"Altro:"]
[null,"Totale regali",{"$f":"SUBTOTAL(109,Regali[Stimate])","v":0},{"$f":"SUBTOTAL(109,Regali[Effettive])","v":0}]
[]
[null,"FIORI"]
[null,"Elemento ","Stimate","Effettive"]
[null,"Bouquet"]
[null,"Fiore all'occhiello"]
[null,"Corsage"]
[null,"Cerimonia"]
[null,"Altro:"]
[null,"Totale fiori",{"$f":"SUBTOTAL(109,Fiori[Stimate])","v":0},{"$f":"SUBTOTAL(109,Fiori[Effettive])","v":0}]
[]
[null,"MUSICA"]
[null,"Elemento ","Stimate","Effettive"]
[null,"Musicisti per la cerimonia"]
[null,"Gruppo/DJ per il ricevimento"]
[null,"Altro:"]
[null,"Totale musica",{"$f":"SUBTOTAL(109,Musica[Stimate])","v":0},{"$f":"SUBTOTAL(109,Musica[Effettive])","v":0}]
[]
[null,"FOTOGRAFIA"]
[null,"Elemento ","Stimate","Effettive"]
[null,"Balli"]
[null,"Foto non ufficiali"]
[null,"Stampe aggiuntive"]
[null,"Album fotografici"]
[null,"Altro:"]
[null,"Totale fotografia",{"$f":"SUBTOTAL(109,Fotografie[Stimate])","v":0},{"$f":"SUBTOTAL(109,Fotografie[Effettive])","v":0}]
[]
[null,"RICEVIMENTO NUZIALE "]
[null,"Elemento ","Stimate","Effettive"]
[null,"Spese sala/hall"]
[null,"Tavoli e sedie"]
[null,"Cibo"]
[null,"Biancheria"]
[null,"Altro:"]
[null,"Totale ricevimento (musica e decorazioni escluse)",{"$f":"SUBTOTAL(109,Ricevimento_nuziale[Stimate])","v":0},{"$f":"SUBTOTAL(109,Ricevimento_nuziale[Effettive])","v":0}]
[]
[null,"ELEMENTI DECORATIVI/STAMPA"]
[null,"Elemento ","Stimate","Effettive"]
[null,"Inviti"]
[null,"Annunci"]
[null,"Biglietti di ringraziamento"]
[null,"Elementi decorativi personali"]
[null,"Altro:"]
[null,"Totale elementi decorativi/stampa",{"$f":"SUBTOTAL(109,ElementiDecorativiEStampa[Stimate])","v":0},{"$f":"SUBTOTAL(109,ElementiDecorativiEStampa[Effettive])","v":0}]
[]
[null,"TRASPORTI"]
[null,"Elemento ","Stimate","Effettive"]
[null,"Limousine/tram"]
[null,"Parcheggio"]
[null,"Taxi"]
[null,"Altro:"]
[null,"Totale trasporti",{"$f":"SUBTOTAL(109,Trasporti[Stimate])","v":0},{"$f":"SUBTOTAL(109,Trasporti[Effettive])","v":0}]
[]
[null,"ALTRE SPESE"]
[null,"Elemento ","Stimate","Effettive"]
[null,"Officiante"]
[null,"Compenso per la chiesa/sede della cerimonia"]
[null,"Coordinatore per il matrimonio"]
[null,"Cena prenuziale"]
[null,"Altro:"]
[null,"Totale altre spese",{"$f":"SUBTOTAL(109,AltreSpese[Stimate])","v":0},{"$f":"SUBTOTAL(109,AltreSpese[Effettive])","v":0}]